bitfinex-derivatives/quotes_SOLF0:USTF0_20250514
["timestamp","ask_amount","ask_price","bid_price","bid_amount"]
[1747213968979,2.7862056,178.79,178.65,97.32]
[1747213969383,5.5957,178.7,178.65,97.32]
[1747213969584,1.829,178.79,178.65,97.32]
[1747213969787,11.1864,178.78,178.65,97.32]
[1747213969981,12.14327794,178.78,178.65,97.32]
[1747213970182,0.95687794,178.77,178.65,97.32]
[1747213970385,5.5966,178.67,178.65,97.32]
[1747213970581,97.14,178.76,178.65,97.32]
[1747213970886,5.5966,178.67,178.65,97.32]
[1747213971081,104.25473297,178.76,178.65,97.32]
[1747213971575,5.5965,178.68,178.65,97.32]
[1747213971881,104.25473297,178.76,178.65,97.32]
[1747213972385,0.95681116,178.75,178.65,97.32]
[1747213972585,5.5965,178.68,178.65,97.32]
[1747213972789,104.25473297,178.76,178.65,97.32]
[1747213973282,0.95680448,178.75,178.65,97.32]
[1747213973683,5.5948,178.73,178.65,97.32]
[1747213973985,97.0,178.77,178.71,5.5953]
[1747213974593,5.5946,178.74,178.7,5.5955]
[1747213974886,5.5946,178.74,178.65,194.28]
[1747213975486,5.5946,178.74,178.7,5.5955]
[1747213975887,5.5947,178.73,178.7,5.5955]
[1747213976787,5.5945,178.74,178.71,5.5952]
[1747213976988,97.0,178.77,178.65,194.28]
[1747213977383,5.5946,178.74,178.65,194.28]
[1747213977689,97.0,178.77,178.71,5.5953]
[1747213978080,5.5947,178.74,178.71,5.5953]
[1747213978687,96.74,178.82,178.71,97.32]
[1747213978888,96.74,178.82,178.72,5.4671]
[1747213979088,5.5937,178.77,178.74,5.5942]
[1747213979288,96.74,178.82,178.72,5.4671]
[1747213979594,463.1643,178.84,178.75,5.5941]
[1747213979796,96.7,178.83,178.72,5.4671]
[1747213980091,98.4147,178.87,178.78,5.5929]
[1747213980289,5.5924,178.81,178.78,5.5929]
[1747213980486,98.4147,178.87,178.77,102.9133]
[1747213980791,98.3747,178.87,178.77,102.9133]
[1747213980984,96.62,178.86,178.77,102.9133]
[1747213981189,96.62,178.86,178.78,5.5931]
[1747213981389,5.5918,178.83,178.77,97.32]
[1747213981981,5.5912,178.85,178.77,97.32]
[1747213982186,5.5912,178.85,178.81,5.5919]
[1747213982389,96.56,178.89,178.81,5.5919]
[1747213982788,98.2949,178.9,178.77,97.32]
[1747213983292,0.95781846,178.89,178.77,97.3]
[1747213983693,5.5926,178.8,178.77,97.3]
[1747213983892,5.5926,178.8,178.77,102.8934]
[1747213984092,5.5926,178.8,178.77,97.3]
[1747213984693,7.11473297,178.92,178.77,97.3]
[1747213984889,96.42,178.9,178.77,97.3]
[1747213985088,96.42,178.9,178.8,5.5924]
[1747213985390,96.42,178.9,178.77,97.3]
[1747213985584,96.42,178.9,178.81,5.5919]
[1747213985891,5.5912,178.85,178.81,5.5919]
[1747213986293,96.42,178.9,178.77,97.3]
[1747213987289,1.8841,178.91,178.77,97.3]
[1747213987489,5.5899,178.89,178.78,96.3]
[1747213987687,96.28,178.94,178.79,1.8513]
[1747213987884,96.28,178.94,178.83,5.5915]
[1747213988089,5.5902,178.88,178.79,1.8513]
[1747213988487,5.5902,178.88,178.84,5.5912]
[1747213988689,5.5904,178.87,178.83,97.28]
[1747213988885,96.2,178.93,178.83,97.28]
[1747213989189,5.59,178.89,178.83,97.28]
[1747213989392,96.18,178.93,178.83,97.28]
[1747213989690,5.5917,178.83,178.79,7.444]
[1747213989890,96.16,178.87,178.79,1.8513]
[1747213990091,96.16,178.87,178.76,100.9111]
[1747213990297,5.595,178.72,178.67,5.5965]
[1747213990596,96.14,178.74,178.61,99.1107]
[1747213990794,5.596,178.69,178.63,5.5975]
[1747213991194,96.1,178.73,178.61,99.1107]
[1747213991595,5.5957,178.7,178.61,99.1107]
[1747213992091,5.595,178.72,178.67,5.5964]
[1747213992394,96.04,178.75,178.61,99.1107]
[1747213993091,96.02,178.78,178.63,7.11473297]
[1747213993395,96.02,178.78,178.64,96.02]
[1747213993698,5.5945,178.74,178.69,5.5959]
[1747213993994,96.02,178.78,178.7,1.8213]
[1747213994196,5.5948,178.73,178.7,1.8213]
[1747213995691,96.02,178.78,178.7,1.8213]
[1747213996803,5.5948,178.73,178.7,1.8213]
[1747213996992,96.02,178.78,178.7,1.8213]
[1747213997300,5.5952,178.72,178.7,1.8213]
[1747213998107,5.5947,178.73,178.7,1.8213]
[1747213998797,96.02,178.78,178.7,1.8213]
[1747213999801,5.5947,178.74,178.7,1.8213]
[1747214000000,96.02,178.78,178.7,1.8213]
[1747214000403,5.5955,178.71,178.69,97.28]
[1747214000598,97.26,178.83,178.69,97.28]
[1747214000791,95.76,178.81,178.7,5.5956]
[1747214000992,96.7155397,178.81,178.7,5.5956]
[1747214001198,0.9555397,178.8,178.71,5.5953]
[1747214001693,5.5943,178.75,178.7,5.5956]
[1747214002196,5.5943,178.75,178.71,5.5952]
[1747214002493,97.26,178.83,178.69,97.28]
[1747214002494,1.8883,178.84,178.69,97.28]
[1747214002700,95.7,178.78,178.69,97.28]
[1747214003203,102.99473297,178.82,178.7,3.4782]
[1747214003504,95.68,178.81,178.72,5.5948]
[1747214003798,5.5936,178.77,178.7,3.4782]
[1747214004003,95.66,178.8,178.7,3.4782]
[1747214004004,95.66,178.8,178.73,5.5946]
[1747214004399,95.66,178.8,178.71,1.7806]
[1747214004803,5.5943,178.75,178.71,1.7806]
[1747214005003,95.66,178.8,178.71,1.7806]
[1747214005410,5.5946,178.74,178.71,1.7806]
[1747214006201,5.5942,178.75,178.71,7.3759]
[1747214006506,5.5942,178.75,178.71,1.7806]
[1747214006906,5.5942,178.75,178.71,7.3757]
[1747214007308,5.5942,178.75,178.71,1.7806]
[1747214007507,5.5942,178.75,178.71,7.3758]
[1747214007808,5.5942,178.75,178.71,1.7806]
[1747214008202,5.5942,178.75,178.71,7.3757]
[1747214008905,5.5945,178.74,178.71,7.3757]
[1747214009108,95.66,178.8,178.71,7.3757]
[1747214009311,95.66,178.8,178.72,5.5949]
[1747214009606,5.5943,178.75,178.72,5.5949]
[1747214009906,5.5943,178.75,178.71,7.3758]
[1747214010403,5.5944,178.74,178.71,7.3758]
[1747214010800,5.5943,178.75,178.72,5.5949]
[1747214011108,95.66,178.8,178.71,1.7806]
[1747214011410,95.66,178.8,178.71,7.3758]
[1747214011609,95.66,178.8,178.71,1.7806]
[1747214011810,1.8883,178.84,178.71,1.7806]
[1747214012009,96.29608309,178.83,178.74,5.5942]
[1747214012210,95.34,178.83,178.74,5.5942]
[1747214012406,95.34,178.83,178.71,1.7806]
[1747214012607,5.5932,178.78,178.74,5.5942]
[1747214012808,5.5932,178.78,178.71,1.7806]
[1747214013004,5.5929,178.79,178.76,5.5938]
[1747214013410,1.8883,178.84,178.71,1.7806]
[1747214013712,5.5925,178.8,178.77,5.5932]
[1747214013903,95.28,178.83,178.71,1.7806]
[1747214014105,95.28,178.83,178.79,5.5926]
[1747214014106,5.5921,178.82,178.79,5.5926]
[1747214014614,5.5915,178.84,178.81,5.592]
[1747214015620,95.2,178.87,178.75,95.88]
[1747214016117,95.2,178.87,178.77,5.5932]
[1747214016415,95.2,178.87,178.75,95.88]
[1747214016718,5.5928,178.8,178.76,5.5935]
[1747214017113,5.5928,178.8,178.75,95.88]
[1747214017313,95.2,178.87,178.75,95.88]
[1747214018012,5.5919,178.82,178.79,5.5926]
[1747214018217,95.2,178.87,178.75,95.88]
[1747214019018,3.7883,178.9,178.75,95.88]
[1747214019519,95.04,178.89,178.75,674.44]
[1747214019718,96.8891,178.9,178.75,674.44]
[1747214020017,96.8891,178.9,178.83,5.5913]
[1747214020421,5.5907,178.86,178.75,674.44]
[1747214021017,96.8891,178.9,178.82,5.5916]
[1747214021223,5.591,178.85,178.82,5.5916]
[1747214021725,96.8891,178.9,178.75,579.4]
[1747214021918,1.7967,178.89,178.75,579.4]
[1747214022118,2.75301436,178.89,178.75,579.4]
[1747214022519,1.7967,178.89,178.75,579.4]
[1747214023024,5.5918,178.83,178.79,5.5928]
[1747214023222,5.5918,178.83,178.75,579.4]
[1747214023420,1.7967,178.89,178.75,579.4]
[1747214024121,5.5913,178.84,178.81,5.5921]
[1747214026625,1.7967,178.89,178.75,579.4]
[1747214027124,5.591,178.85,178.82,5.5916]
[1747214027420,5.591,178.85,178.75,579.4]
[1747214027724,1.7967,178.89,178.75,579.4]
[1747214028325,5.5918,178.83,178.8,5.5923]
[1747214028527,5.5918,178.83,178.75,579.4]
[1747214029228,5.5919,178.82,178.75,579.4]
[1747214030428,5.5919,178.82,178.77,5.5934]
[1747214030630,1.7967,178.89,178.75,579.4]
[1747214031126,11.181,178.87,178.75,95.88]
[1747214031329,94.64,178.86,178.75,95.88]
[1747214031527,5.5937,178.77,178.75,95.88]
[1747214031730,94.5,178.82,178.75,95.88]
[1747214032129,5.5945,178.74,178.71,7.3757]
[1747214032529,105.6839,178.82,178.7,96.3782]
[1747214032728,1.7977,178.81,178.7,96.3782]
[1747214032926,1.7977,178.81,178.7,101.9738]
[1747214033126,1.7977,178.81,178.7,96.3782]
[1747214034233,1.7977,178.81,178.72,5.595]
[1747214034540,1.7977,178.81,178.7,96.3782]
[1747214034941,5.5943,178.75,178.72,5.5949]
[1747214035335,5.5943,178.75,178.7,96.3782]
[1747214035945,5.5943,178.75,178.71,5.5951]
[1747214036139,5.5943,178.75,178.7,96.3782]
[1747214036340,5.5939,178.76,178.7,96.3782]
[1747214036540,1.7977,178.81,178.7,96.3782]
[1747214036844,5.5942,178.75,178.7,96.3782]
[1747214037143,5.5942,178.75,178.72,5.5948]
[1747214038246,4.43887469,178.85,178.7,100.81707469]
[1747214038444,94.22,178.84,178.73,4.43887469]
[1747214038738,5.593,178.79,178.73,4.43887469]
[1747214039042,94.22,178.84,178.73,4.43887469]
[1747214039845,5.5935,178.77,178.73,4.43887469]
[1747214040341,5.5935,178.77,178.74,5.5942]
[1747214040739,94.22,178.84,178.7,96.3782]
[1747214040943,4.43887469,178.82,178.72,5.5948]
[1747214041138,94.22,178.84,178.7,96.3782]
[1747214041447,4.43887469,178.85,178.7,96.3782]
[1747214041647,5.5925,178.8,178.7,96.3782]
[1747214041945,94.08,178.84,178.7,96.3782]
[1747214042148,5.5923,178.81,178.7,96.3782]
[1747214042340,94.08,178.84,178.7,96.3782]
[1747214042744,4.43887469,178.85,178.7,96.3782]
[1747214042944,94.04,178.84,178.7,96.3782]
[1747214043243,5.5927,178.8,178.77,5.5932]
[1747214043738,94.0,178.84,178.73,4.43887469]
[1747214044247,5.5919,178.82,178.79,5.5926]
[1747214044548,95.7725,178.88,178.76,99.09887469]
[1747214044847,95.7725,178.88,178.77,3.5519]
[1747214045451,5.5914,178.84,178.81,5.592]
[1747214045648,95.7725,178.88,178.77,3.5519]
[1747214046442,95.6925,178.88,178.77,3.5519]
[1747214046941,5.591,178.85,178.81,5.592]
[1747214047248,5.591,178.85,178.77,3.5519]
[1747214047445,5.591,178.85,178.82,5.5917]
[1747214047637,5.5908,178.86,178.77,3.5519]
[1747214047837,1.8125,178.88,178.77,5.4096]
[1747214048450,5.5914,178.84,178.77,5.4096]
[1747214048645,1.8125,178.88,178.77,5.4096]
[1747214049550,5.5912,178.85,178.81,5.5919]
[1747214049748,5.5912,178.85,178.77,5.4096]
[1747214050248,5.5913,178.84,178.81,5.592]
[1747214050649,1.8125,178.88,178.77,5.4096]
[1747214051348,5.5914,178.84,178.81,5.5921]
[1747214051951,6.25137469,178.88,178.77,5.4096]
[1747214052249,4.43887469,178.85,178.76,94.66]
[1747214053547,93.56,178.84,178.76,94.66]
[1747214054051,5.5931,178.79,178.76,94.66]
[1747214054651,5.5932,178.78,178.76,94.66]
[1747214054852,4.43887469,178.82,178.72,3.615]
[1747214055749,5.5938,178.76,178.73,5.5945]
[1747214056052,4.43887469,178.82,178.72,1.7804]
[1747214056245,5.5946,178.74,178.71,5.5952]
[1747214056440,93.44,178.77,178.7,94.64]
[1747214056847,5.5947,178.74,178.7,100.2354]
[1747214057047,93.44,178.77,178.7,100.2354]
[1747214057048,93.44,178.77,178.7,94.64]
[1747214057855,93.44,178.77,178.68,1.8795]
[1747214058555,5.5949,178.73,178.7,5.5956]
[1747214059052,93.44,178.77,178.7,5.5956]
[1747214059254,5.5945,178.74,178.7,5.5956]
[1747214059453,93.44,178.77,178.69,5.5958]
[1747214060155,93.44,178.77,178.67,1.7932]
[1747214061051,5.5949,178.73,178.69,5.5959]
[1747214061251,93.44,178.77,178.67,1.7932]
[1747214061552,4.43887469,178.76,178.66,488.9967]
[1747214062149,5.5955,178.71,178.67,5.5964]
[1747214062345,5.5955,178.71,178.65,93.36]
[1747214062551,4.43887469,178.76,178.65,93.36]
[1747214062756,5.5949,178.73,178.65,93.36]
[1747214063154,5.5949,178.73,178.69,5.5958]
[1747214063756,5.5949,178.73,178.7,5.5956]
[1747214064157,5.5946,178.74,178.7,5.5956]
[1747214064350,4.43887469,178.76,178.7,5.5956]
[1747214064655,1.7767,178.8,178.65,93.36]
[1747214064858,93.1,178.79,178.67,4.43887469]
[1747214065052,93.1,178.79,178.68,1.8629]
[1747214065355,5.5936,178.77,178.68,1.8629]
[1747214065555,93.1,178.79,178.69,1.9202]
[1747214065957,93.1,178.79,178.72,5.5948]
[1747214066956,93.1,178.79,178.69,1.9202]
[1747214067857,5.594,178.76,178.69,1.9202]
[1747214068058,93.1,178.79,178.69,1.9202]
[1747214068658,5.5941,178.76,178.72,5.595]
[1747214068958,5.5941,178.76,178.69,1.9202]
[1747214069161,5.5943,178.75,178.72,5.5948]
[1747214069355,93.1,178.79,178.69,1.9202]
[1747214069662,92.88,178.78,178.69,1.9202]
[1747214069854,5.5949,178.73,178.69,1.9202]
[1747214070051,92.88,178.78,178.69,1.9202]
[1747214070253,5.5946,178.74,178.71,5.5951]
[1747214070561,92.88,178.78,178.69,1.9202]
[1747214070864,5.5945,178.74,178.71,5.5953]
[1747214071162,92.88,178.78,178.67,4.43887469]
[1747214071363,5.5952,178.72,178.69,5.5958]
[1747214072263,5.5952,178.72,178.7,5.5956]
[1747214072457,6.21557469,178.8,178.7,5.5956]
[1747214072658,5.5948,178.73,178.65,93.36]
[1747214072864,92.74,178.77,178.66,4.43887469]
[1747214073059,5.5941,178.75,178.66,4.43887469]
[1747214073559,5.5941,178.75,178.72,5.5948]
[1747214074959,5.5939,178.76,178.73,5.5947]
[1747214075258,4.43887469,178.85,178.71,93.4]
[1747214075468,92.62,178.82,178.72,3.7129]
[1747214075662,92.62,178.82,178.76,5.5935]
[1747214075863,4.43887469,178.85,178.76,5.5935]
[1747214076065,92.6,178.84,178.76,5.5935]
[1747214076266,92.6,178.84,178.75,5.594]
[1747214076465,92.6,178.84,178.72,5.4872]
[1747214077067,5.593,178.79,178.72,5.4872]
[1747214078165,5.5931,178.78,178.72,5.4872]
[1747214078367,92.54,178.82,178.72,9.92607469]
[1747214078562,92.48,178.83,178.72,9.92607469]
[1747214078866,5.5925,178.8,178.72,9.92607469]
[1747214079461,92.48,178.83,178.72,9.92607469]
[1747214079462,5.5917,178.83,178.72,9.92607469]
[1747214079666,92.42,178.83,178.72,9.92607469]
[1747214080072,92.42,178.85,178.79,5.5925]
[1747214081170,92.42,178.85,178.72,9.92607469]
[1747214081371,5.5919,178.82,178.72,9.92607469]
[1747214081870,5.5923,178.81,178.72,9.92607469]
[1747214082071,92.34,178.85,178.72,9.92607469]
[1747214082372,92.34,178.85,178.78,5.5931]
[1747214082572,92.34,178.85,178.72,9.92607469]
[1747214083069,5.5926,178.8,178.77,5.5932]
[1747214084169,92.34,178.85,178.75,5.5938]
[1747214084370,92.34,178.85,178.72,9.92607469]
[1747214085274,5.592,178.82,178.79,5.5928]
[1747214085571,92.34,178.85,178.72,9.92607469]
[1747214085776,92.14,178.85,178.72,5.4872]
[1747214085973,92.14,178.85,178.75,4.43887469]
[1747214086475,5.5918,178.83,178.8,5.5923]
[1747214087478,5.5913,178.84,178.81,5.5922]
[1747214087675,93.8532,178.86,178.81,5.5922]
[1747214087975,5.5916,178.83,178.81,5.5922]
[1747214088379,5.5916,178.83,178.77,93.38]
[1747214088577,5.592,178.82,178.77,93.38]
[1747214088877,93.8532,178.86,178.77,93.38]
[1747214089174,5.5929,178.79,178.77,93.38]
[1747214089677,5.5926,178.8,178.77,98.9734]
[1747214089872,93.8532,178.86,178.77,93.38]
[1747214090277,5.5929,178.79,178.77,93.38]
[1747214090474,16.7668,178.92,178.77,93.38]
[1747214090673,91.92,178.9,178.77,93.38]
[1747214090872,92.87388503,178.9,178.77,93.38]
[1747214091178,0.95388503,178.89,178.77,93.38]
[1747214091373,0.95388503,178.89,178.8,5.5924]
[1747214091869,0.95388503,178.89,178.77,93.38]
[1747214092677,5.5922,178.81,178.78,5.5929]
[1747214092878,0.95388503,178.89,178.77,93.38]
[1747214093074,91.92,178.9,178.77,93.38]
[1747214093581,4.43887469,178.85,178.72,97.4672]
[1747214093774,97.3568,178.84,178.75,5.594]
[1747214094473,5.5932,178.78,178.75,5.594]
[1747214094678,97.3568,178.84,178.72,97.4672]
[1747214094875,5.5937,178.77,178.72,95.6929]
[1747214095181,5.5937,178.77,178.74,5.5944]
[1747214095380,97.3568,178.84,178.72,93.8915]
[1747214095681,5.5768,178.84,178.76,5.5936]
[1747214095979,91.68,178.83,178.76,5.5936]
[1747214097079,387.53422974,178.99,178.77,4.43887469]
[1747214097385,179.32216175,178.93,178.78,93.868]
[1747214097680,5.39269884,178.92,178.8,5.5923]
[1747214097881,5.39269884,178.92,178.78,93.868]
[1747214098185,0.95382415,178.91,178.82,5.5919]
[1747214098476,5.5905,178.87,178.82,5.5919]
[1747214098677,5.5905,178.87,178.79,1.9116]
[1747214098883,5.5908,178.86,178.79,1.9116]
[1747214099183,4.43887469,178.92,178.79,1.9116]
[1747214100384,4.43887469,178.92,178.79,5.5927]
[1747214100385,91.98,178.91,178.79,5.5927]
[1747214100578,4.43887469,178.89,178.78,91.98]
[1747214100778,3.5331,178.88,178.73,97.2434]
[1747214101088,91.44,178.87,178.74,4.43887469]
[1747214101280,4.43887469,178.86,178.73,97.2434]
[1747214101486,6.19417469,178.86,178.73,97.2434]
[1747214101685,5.5923,178.81,178.73,97.2434]
[1747214102181,1.7553,178.86,178.74,4.43887469]
[1747214102385,85.92676175,178.93,178.77,4.43887469]
[1747214102386,91.36,178.91,178.77,4.43887469]
[1747214102587,91.36,178.91,178.8,4.43887469]
[1747214102785,91.36,178.91,178.81,91.98]
[1747214103288,5.5898,178.89,178.84,5.5911]
[1747214103490,96.9098,178.89,178.84,5.5911]
[1747214103987,96.9098,178.89,178.85,5.5909]
[1747214104191,6.35277469,178.92,178.81,91.98]
[1747214104490,91.28,178.91,178.81,91.98]
[1747214105186,7.5027,178.92,178.88,5.5899]
[1747214105390,1.9139,178.92,178.81,91.98]
[1747214105596,5.5893,178.91,178.81,91.98]
[1747214105791,1.9139,178.92,178.81,91.98]
[1747214106194,5.5892,178.91,178.87,5.5901]
[1747214106392,1.9139,178.92,178.81,91.98]
[1747214106992,5.5892,178.91,178.81,91.98]
[1747214107195,1.9139,178.92,178.81,91.98]
[1747214107395,5.5896,178.9,178.86,5.5906]
[1747214107898,5.5902,178.88,178.83,5.5914]
[1747214108197,97.49277469,178.92,178.82,91.96]
[1747214108694,93.0539,178.92,178.82,91.96]
[1747214108992,1.9139,178.92,178.82,91.96]
[1747214109489,7.5028,178.92,178.82,91.96]
[1747214109690,1.9139,178.92,178.82,91.96]
[1747214110395,5.5891,178.91,178.82,91.96]
[1747214110794,1.9139,178.92,178.82,91.96]
[1747214110992,5.5897,178.89,178.86,5.5904]
[1747214111296,1.9139,178.92,178.82,91.96]
[1747214111497,5.5899,178.89,178.82,91.96]
[1747214111694,1.9139,178.92,178.82,91.96]
[1747214111996,5.59,178.88,178.85,5.5907]
[1747214112395,1.9139,178.92,178.82,91.96]
[1747214112594,90.88,178.91,178.82,91.96]
[1747214112795,5.5899,178.89,178.85,5.5907]
[1747214112992,90.88,178.91,178.82,91.96]
[1747214113399,5.5906,178.87,178.84,5.5912]
[1747214114899,90.88,178.91,178.82,91.96]
[1747214115403,5.5908,178.86,178.82,91.96]
[1747214115704,90.88,178.91,178.82,91.96]
[1747214116004,5.5908,178.86,178.82,91.96]
[1747214116403,5.591,178.85,178.82,97.5518]
[1747214116903,90.88,178.91,178.82,91.96]
[1747214118798,90.88,178.91,178.82,97.5518]
[1747214119004,90.88,178.91,178.82,91.96]
[1747214119602,95.31887469,178.91,178.82,91.96]
[1747214120008,5.5915,178.84,178.82,91.96]
[1747214121110,5.5911,178.85,178.82,91.96]
[1747214122008,5.5914,178.84,178.82,91.96]
[1747214122710,5.5911,178.85,178.82,97.5518]
[1747214123009,95.31887469,178.91,178.82,91.96]
[1747214124009,5.5916,178.83,178.82,91.96]
[1747214128413,5.5925,178.8,178.79,483.38]
[1747214128613,90.34,178.85,178.79,483.38]
[1747214129410,90.12,178.89,178.79,483.38]
[1747214129617,5.5901,178.88,178.79,483.38]
[1747214129817,90.12,178.89,178.85,5.5906]
[1747214130113,1.9139,178.92,178.85,5.5906]
[1747214130314,90.08,178.91,178.85,5.5906]
[1747214130614,90.08,178.91,178.86,5.5906]
[1747214130813,90.08,178.91,178.83,90.58]
[1747214131112,5.5901,178.88,178.84,5.5911]
[1747214131313,90.08,178.91,178.83,90.58]
[1747214131511,1.9139,178.92,178.83,90.58]
[1747214131715,90.0,178.91,178.83,90.58]
[1747214131914,1.9139,178.92,178.83,90.58]
[1747214132114,5.59,178.89,178.83,90.58]
[1747214132515,5.5907,178.86,178.83,90.58]
[1747214132715,91.8939,178.92,178.83,90.58]
[1747214133814,91.8939,178.92,178.83,96.1715]
[1747214134013,91.8939,178.92,178.83,90.58]
[1747214134215,5.5911,178.85,178.83,90.58]
[1747214134919,5.5913,178.84,178.83,90.58]
[1747214135313,91.8939,178.92,178.83,90.58]
[1747214135514,5.591,178.85,178.83,90.58]
[1747214136118,5.591,178.85,178.83,96.1716]
[1747214136319,5.5908,178.86,178.83,96.1716]
[1747214137421,1.9139,178.92,178.83,90.58]
[1747214137622,89.72,178.91,178.83,90.58]
[1747214138118,5.5909,178.86,178.83,90.58]
[1747214138721,5.591,178.85,178.83,90.58]
[1747214139425,89.72,178.91,178.83,90.58]
[1747214140026,5.5909,178.86,178.83,90.58]
[1747214140223,89.72,178.91,178.83,90.58]
[1747214140425,1.9139,178.92,178.83,90.58]
[1747214140620,89.58,178.91,178.85,5.5908]
[1747214141023,95.01887469,178.95,178.85,5.5908]
[1747214141220,89.56,178.94,178.84,5.5911]
[1747214141524,4.43887469,178.92,178.83,90.58]
[1747214142323,5.5913,178.84,178.83,90.58]
[1747214142718,89.5,178.88,178.83,90.58]
[1747214143025,5.5913,178.84,178.83,90.58]
[1747214144724,5.5925,178.81,178.79,483.38]
[1747214145028,89.5,178.88,178.79,483.38]
[1747214145323,4.43887469,178.86,178.78,90.58]
[1747214145722,5.5928,178.79,178.78,90.58]
[1747214146423,5.594,178.76,178.74,1.906]
[1747214146724,89.32,178.82,178.72,90.58]
[1747214146925,94.912,178.82,178.72,95.01887469]
[1747214147421,89.32,178.82,178.75,4.43887469]
[1747214147622,89.32,178.82,178.76,3.7254]
[1747214148127,89.24,178.87,178.76,3.7254]
[1747214148728,364.0,178.88,178.76,3.7254]
[1747214149026,1.8583,178.9,178.78,4.43887469]
[1747214149027,5.5911,178.85,178.78,4.43887469]
[1747214149226,5.5911,178.85,178.79,91.0361]
[1747214149427,91.0383,178.9,178.79,91.0361]
[1747214150024,5.5909,178.86,178.79,91.0361]
[1747214150419,89.18,178.9,178.81,4.43887469]
[1747214151725,89.18,178.9,178.79,91.0361]
[1747214152328,89.18,178.9,178.82,5.5919]
[1747214152828,5.5918,178.83,178.79,1.8561]
[1747214153127,5.5918,178.83,178.8,89.18]
[1747214153429,5.5914,178.84,178.8,89.18]
[1747214153627,89.18,178.9,178.8,89.18]
[1747214153926,89.18,178.9,178.81,5.5922]
[1747214154427,89.18,178.9,178.8,89.18]
[1747214154626,88.94,178.89,178.8,89.18]
[1747214155532,5.5909,178.86,178.8,89.18]
[1747214156027,5.5909,178.86,178.82,5.5917]
[1747214156229,5.5909,178.85,178.82,5.5917]
[1747214156431,88.94,178.89,178.8,89.18]
[1747214157223,88.94,178.89,178.82,5.5917]
[1747214157634,88.94,178.89,178.8,89.18]
[1747214158030,95.01887469,178.94,178.8,89.18]
[1747214158231,88.78,178.92,178.85,5.5906]
[1747214158426,5.5902,178.88,178.85,5.5906]
[1747214159833,5.5903,178.87,178.8,93.61887469]
[1747214160033,88.74,178.92,178.8,93.61887469]
[1747214160430,93.17887469,178.92,178.8,89.18]
[1747214160936,93.17887469,178.92,178.81,5.5921]
[1747214161333,93.17887469,178.92,178.8,89.18]
[1747214161636,5.5912,178.85,178.82,5.5919]
[1747214162030,93.17887469,178.92,178.8,89.18]
[1747214162230,5.5915,178.84,178.81,5.5921]
[1747214162737,93.17887469,178.92,178.8,89.18]
[1747214162936,4.43887469,178.89,178.8,89.18]
[1747214163432,4.43887469,178.86,178.76,9.319]
[1747214163638,88.54,178.85,178.76,9.319]
[1747214163936,88.54,178.85,178.75,89.18]
[1747214164139,90.298,178.85,178.75,89.18]
[1747214164337,5.5938,178.76,178.75,89.18]
[1747214164538,90.298,178.85,178.75,89.18]